bitfinex/quotes_SOLUSD_20260203
["timestamp","ask_amount","ask_price","bid_price","bid_amount"]
[1770087730145,27.03853298,102.56,102.53,13.44293696]
[1770087730519,27.03853298,102.56,102.53,3.68973203]
[1770087731341,27.03853298,102.56,102.53,13.44292106]
[1770087731640,17.28799682,102.56,102.53,13.44292106]
[1770087731842,27.03844766,102.56,102.53,3.68973203]
[1770087732856,3.58925195,102.53,102.5,13.54542184]
[1770087733036,13.69874487,102.53,102.5,13.54542184]
[1770087733837,17.28799682,102.52,102.5,0.1]
[1770087734744,17.28799682,102.51,102.5,0.1]
[1770087735126,17.28799682,102.51,102.48,3.68973203]
[1770087735348,13.69874487,102.51,102.48,3.68973203]
[1770087735532,13.69874487,102.52,102.48,3.68973203]
[1770087735725,23.45312488,102.52,102.48,3.68973203]
[1770087736423,27.04237683,102.52,102.48,3.68973203]
[1770087736647,13.69874487,102.51,102.48,3.68973203]
[1770087736853,27.04237683,102.52,102.48,13.4471557]
[1770087737453,13.69874487,102.53,102.5,3.68973203]
[1770087737831,23.45156716,102.54,102.51,3.68973203]
[1770087738058,13.69874487,102.53,102.5,3.68973203]
[1770087739156,13.69874487,102.53,102.5,13.44547507]
[1770087739549,27.04081911,102.54,102.51,3.68973203]
[1770087739944,24.38027739,102.55,102.5,9.75574304]
[1770087739945,9.75172814,102.55,102.52,3.68973203]
[1770087740251,23.45047301,102.55,102.52,3.68973203]
[1770087740434,27.38046811,102.55,102.52,3.68973203]
[1770087740835,9.75078418,102.56,102.52,13.69874487]
[1770087741048,27.37952415,102.56,102.52,3.67131929]
[1770087741245,13.69874487,102.55,102.52,13.42538791]
[1770087742554,13.69874487,102.54,102.52,3.67131929]
[1770087743460,27.38025646,102.55,102.52,13.42537231]
[1770087744053,34.12986851,102.55,102.48,24.39313526]
[1770087744261,13.69874487,102.49,102.45,13.43133384]
[1770087744448,13.69874487,102.46,102.44,9.86135976]
[1770087744645,17.62873997,102.45,102.44,0.1]
[1770087744868,3.9299951,102.46,102.43,10.17980558]
[1770087745160,13.69874487,102.47,102.44,3.67131929]
[1770087745362,3.9299951,102.44,102.37,33.66670203]
[1770087745668,3.9299951,102.44,102.3,13.69874487]
[1770087745669,2.96064822,102.37,102.3,13.69874487]
[1770087745966,13.69874487,102.38,102.34,13.69874487]
[1770087746138,4.27527085,102.4,102.31,24.43453444]
[1770087746344,16.65939309,102.41,102.36,13.69874487]
[1770087746564,13.69874487,102.37,102.3,9.77517106]
[1770087746867,63.00751924,102.42,102.34,4.01597927]
[1770087746868,19.67708817,102.42,102.34,4.01597927]
[1770087747040,13.69874487,102.41,102.35,17.71472414]
[1770087747235,19.67708817,102.42,102.37,4.01597927]
[1770087747441,13.69874487,102.4,102.37,4.01597927]
[1770087747738,19.67708817,102.42,102.37,4.01597927]
[1770087747938,33.37583304,102.42,102.37,4.01597927]
[1770087748159,19.67708817,102.42,102.37,4.01597927]
[1770087748358,13.69874487,102.41,102.36,13.69874487]
[1770087748670,19.67708817,102.42,102.38,13.69874487]
[1770087749047,23.45842057,102.47,102.41,13.69874487]
[1770087749253,19.87292409,102.47,102.38,0.28432314]
[1770087749450,13.69874487,102.44,102.39,13.69874487]
[1770087749852,13.69874487,102.44,102.37,34.18970401]
[1770087750062,13.69874487,102.44,102.39,13.69874487]
[1770087750364,13.69874487,102.43,102.39,3.67131929]
[1770087750774,23.46079055,102.44,102.4,3.67131929]
[1770087750981,13.69874487,102.43,102.4,3.67131929]
[1770087751165,13.69874487,102.45,102.4,17.37006416]
[1770087751351,23.45892782,102.46,102.42,3.67131929]
[1770087751540,13.69874487,102.46,102.42,3.67131929]
[1770087751746,19.87292409,102.47,102.43,3.67131929]
[1770087751954,6.17417922,102.47,102.43,3.67131929]
[1770087752443,19.87292409,102.47,102.43,3.67131929]
[1770087752643,6.17417922,102.47,102.43,3.67131929]
[1770087752844,29.63195251,102.47,102.43,3.67131929]
[1770087753062,15.93320764,102.47,102.43,17.37006416]
[1770087753244,6.17417922,102.47,102.43,27.13274465]
[1770087753446,19.87292409,102.47,102.43,27.13274465]
[1770087753646,29.63194027,102.47,102.43,27.13274465]
[1770087753855,6.17417922,102.47,102.43,27.13274465]
[1770087754054,19.87292409,102.47,102.43,27.13274465]
[1770087754471,6.17417922,102.47,102.44,3.67131929]
[1770087755271,15.93324105,102.47,102.43,27.13274465]
[1770087756171,6.17417922,102.47,102.43,27.13274465]
[1770087756467,19.78441347,102.47,102.43,27.13274465]
[1770087756671,33.48315834,102.47,102.43,27.13274465]
[1770087756855,19.78441347,102.47,102.43,27.13274465]
[1770087757057,10.02540964,102.47,102.43,27.13274465]
[1770087757653,6.17417922,102.47,102.45,17.37006416]
[1770087758067,6.17417922,102.47,102.45,3.67131929]
[1770087759151,6.17417922,102.47,102.44,23.45997428]
[1770087759152,6.17417922,102.47,102.44,13.43274418]
[1770087759351,6.17417922,102.47,102.44,27.13148905]
[1770087759552,13.69874487,102.45,102.42,3.67131929]
[1770087759766,29.63222937,102.47,102.43,3.67131929]
[1770087760074,29.63222937,102.47,102.45,13.43185807]
[1770087760075,6.17417922,102.47,102.45,13.43185807]
[1770087760253,6.17417922,102.47,102.45,3.67131929]
[1770087760454,9.75640848,102.5,102.46,17.37006416]
[1770087760662,41.81541443,102.51,102.46,3.67131929]
[1770087760663,17.42683363,102.51,102.46,3.67131929]
[1770087760971,13.685558,102.51,102.47,17.37006416]
[1770087761283,17.62873997,102.51,102.47,3.67131929]
[1770087761776,3.9299951,102.5,102.46,13.69874487]
[1770087761973,34.14013919,102.52,102.47,3.67131929]
[1770087761974,17.62873997,102.51,102.47,3.67131929]
[1770087762182,27.38339341,102.52,102.48,3.67131929]
[1770087762558,27.38339341,102.52,102.48,17.37006416]
[1770087762751,27.38339341,102.52,102.48,3.67131929]
[1770087762958,27.38339341,102.52,102.46,3.67131929]
[1770087762959,17.62873997,102.5,102.46,3.67131929]
[1770087763158,3.9299951,102.5,102.46,27.12946318]
[1770087763382,17.62873997,102.5,102.46,27.12946318]
[1770087763971,3.9299951,102.5,102.46,27.12946318]
[1770087764167,3.9299951,102.5,102.47,23.45763259]
[1770087764363,38.07013429,102.52,102.47,27.12895188]
[1770087764568,13.68464854,102.52,102.48,17.37006416]
[1770087764778,27.38339341,102.52,102.48,3.67131929]
[1770087764982,3.9299951,102.52,102.48,27.12713863]
[1770087765204,15.9527786,102.54,102.5,17.37006416]
[1770087765358,6.20013026,102.54,102.51,17.37006416]
[1770087766084,6.20013026,102.54,102.51,3.67131929]
[1770087766486,6.20013026,102.54,102.51,17.37006416]
[1770087766778,6.20013026,102.54,102.52,17.37006416]
[1770087767189,17.62873997,102.53,102.49,3.67131929]
[1770087767377,17.62873997,102.53,102.49,27.12661482]
[1770087767577,17.62873997,102.53,102.49,13.42786995]
[1770087767978,17.62873997,102.53,102.49,3.67131929]
[1770087768288,29.65125698,102.54,102.5,9.755686]
[1770087768491,33.58125208,102.54,102.5,27.12575016]
[1770087768672,33.58125208,102.54,102.5,13.42700529]
[1770087769462,10.13012536,102.54,102.5,27.12575016]
[1770087770287,6.20013026,102.54,102.51,17.12588486]
[1770087770981,33.31961258,102.54,102.5,23.45443087]
[1770087771188,33.31961258,102.54,102.5,26.95902293]
[1770087771375,3.66842292,102.53,102.5,13.26027806]
[1770087771580,17.36716779,102.52,102.48,13.26179705]
[1770087771773,17.36716779,102.52,102.49,9.75694061]
[1770087773007,3.66842292,102.51,102.46,3.50459206]
[1770087773169,3.66842292,102.49,102.46,9.75924839]
[1770087773475,17.36716779,102.49,102.46,9.75924839]
[1770087773872,3.66842292,102.49,102.46,9.75924839]
[1770087774275,17.36716779,102.51,102.47,3.50459206]
[1770087774487,17.40429938,102.5,102.47,9.75850629]
[1770087774693,17.40429938,102.49,102.46,9.75967636]
[1770087774997,3.66842292,102.49,102.46,9.75967636]
[1770087776907,27.16135638,102.49,102.45,37.66628201]
[1770087777074,3.66842292,102.45,102.43,9.76227216]
[1770087777270,3.66842292,102.45,102.43,9.76215953]
[1770087777581,17.40429938,102.45,102.43,9.76215953]
[1770087778101,17.40429938,102.45,102.42,37.67664791]
[1770087778798,3.66842292,102.45,102.42,37.67664791]
[1770087778999,17.40429938,102.46,102.43,9.76272943]
[1770087779202,13.73587646,102.45,102.43,9.76272943]
[1770087779907,3.66842292,102.46,102.43,9.76272943]
[1770087780211,17.40429938,102.46,102.43,9.76272943]
[1770087780419,17.40429938,102.45,102.42,9.76318593]
[1770087780972,3.66842292,102.46,102.42,13.26777799]
[1770087781167,17.40429938,102.45,102.42,9.76318593]
[1770087781392,17.40429938,102.45,102.42,34.17248098]
[1770087781795,17.40429938,102.46,102.42,37.67707304]
[1770087782008,17.40429938,102.45,102.42,34.17248098]
[1770087782185,17.40429938,102.45,102.42,9.76318593]
[1770087782385,3.66842292,102.45,102.42,9.76318593]
[1770087782798,3.66842292,102.45,102.42,13.26777799]
[1770087783119,17.40429938,102.44,102.42,9.76318593]
[1770087783419,3.66842292,102.44,102.41,34.17590919]
[1770087783583,13.73587646,102.46,102.42,3.50459206]
[1770087783784,17.40429938,102.48,102.44,3.50459206]
[1770087784715,3.66842292,102.48,102.44,17.24046852]
[1770087785308,3.66842292,102.49,102.46,3.50459206]
[1770087785501,17.40429938,102.5,102.47,9.75895384]
[1770087785813,3.66842292,102.49,102.46,13.26397325]
[1770087786425,17.40429938,102.49,102.46,9.75938119]
[1770087786586,17.40429938,102.48,102.44,30.62459206]
[1770087786789,17.40429938,102.48,102.45,9.7604025]
[1770087787106,17.40429938,102.48,102.46,9.75952641]
[1770087787316,13.73587646,102.47,102.45,9.7604064]
[1770087787624,13.73587646,102.47,102.43,17.24046852]
[1770087787625,3.66842292,102.47,102.44,34.16584049]
[1770087788606,17.40429938,102.49,102.45,3.50459206]
[1770087789116,27.15977277,102.51,102.47,3.50459206]
[1770087789520,17.40429938,102.5,102.47,9.75895384]
[1770087790798,6.13527769,102.53,102.48,3.50459206]
[1770087791000,19.87115415,102.53,102.49,17.24046852]
[1770087791201,29.62441029,102.53,102.49,17.24046852]
[1770087791913,6.13527769,102.53,102.5,51.38680998]
[1770087792121,13.73587646,102.55,102.51,17.24046852]
[1770087792317,23.4867476,102.56,102.52,17.24046852]
[1770087792719,23.4867476,102.56,102.51,17.24046852]
[1770087793023,27.15517052,102.56,102.52,13.73587646]
[1770087793225,3.66842292,102.56,102.52,17.24046852]
[1770087793627,3.66842292,102.55,102.52,3.50459206]
[1770087793923,17.40429938,102.56,102.53,9.75324295]
[1770087796612,3.66842292,102.56,102.53,9.75324295]
[1770087796912,3.66842292,102.58,102.55,3.50459206]
[1770087797118,17.40429938,102.58,102.54,17.24046852]
[1770087797317,17.40429938,102.57,102.54,3.50459206]
[1770087798012,3.66842292,102.57,102.54,3.50459206]
[1770087798207,3.66842292,102.57,102.53,34.13635033]
[1770087798408,3.66842292,102.55,102.53,9.75324295]
[1770087798626,3.66842292,102.55,102.52,9.7541943]
[1770087798812,3.66842292,102.55,102.52,47.87555651]
[1770087799012,3.66842292,102.55,102.52,51.38014857]
[1770087799727,17.40429938,102.56,102.52,51.38014857]
[1770087799929,17.40429938,102.57,102.53,3.50459206]
[1770087800120,3.66842292,102.57,102.53,17.24046852]
[1770087801221,3.66842292,102.57,102.54,9.75229178]
[1770087801736,3.66842292,102.57,102.54,13.25513753]
[1770087803329,17.40429938,102.57,102.54,9.75229178]
[1770087803726,3.66842292,102.57,102.54,9.75229178]
[1770087803919,3.66842292,102.57,102.54,34.13302125]
[1770087804743,17.40429938,102.57,102.54,9.75229178]
[1770087805038,17.40429938,102.57,102.54,9.75214447]
[1770087805935,3.66842292,102.57,102.54,37.63571969]
[1770087806114,3.57484961,102.59,102.56,3.50284575]
[1770087806919,17.31072607,102.59,102.56,3.50284575]
[1770087807437,17.31072607,102.59,102.56,13.25257136]
[1770087810139,3.57484961,102.59,102.56,13.25257136]
[1770087811641,6.13868627,102.6,102.58,3.50284575]
[1770087812628,6.13868627,102.6,102.57,26.98725349]
[1770087812938,6.13868627,102.6,102.58,3.50284575]
[1770087813835,6.13868627,102.6,102.57,34.12212979]
[1770087814039,23.44941234,102.6,102.57,9.74853128]
[1770087814342,17.31072607,102.59,102.57,9.74853128]
[1770087816335,17.31072607,102.59,102.56,27.87880777]
[1770087816336,17.31072607,102.59,102.56,37.62870726]
[1770087816652,13.73587646,102.58,102.56,9.75032058]
[1770087816831,17.31072607,102.57,102.55,9.75091787]
[1770087817241,3.57484961,102.57,102.55,9.75091787]
[1770087817446,17.31072607,102.58,102.55,9.75091787]
[1770087819434,17.31072607,102.58,102.55,13.25376362]
[1770087819435,3.57484961,102.58,102.55,13.25376362]
[1770087820264,17.31072607,102.58,102.55,9.75091787]
[1770087821047,13.73587646,102.57,102.54,13.25478144]
[1770087821444,3.57484961,102.55,102.53,9.75262215]
[1770087821648,17.31072607,102.55,102.53,9.75262215]
[1770087822932,3.57484961,102.53,102.51,9.75472826]
[1770087823152,17.31072607,102.53,102.51,9.75472826]
[1770087823351,17.31072607,102.53,102.47,27.08]
[1770087823352,3.57484961,102.51,102.47,27.08]
[1770087823553,17.31072607,102.48,102.45,9.76033844]
[1770087823729,13.73587646,102.47,102.42,3.50284575]
[1770087823935,13.73587646,102.46,102.43,3.50284575]
[1770087824143,13.73587646,102.47,102.45,9.76085895]
[1770087824553,13.73587646,102.48,102.45,3.50284575]
[1770087824750,13.73587646,102.46,102.43,9.7626736]
[1770087824960,13.73587646,102.47,102.44,9.76180458]
[1770087825664,9.7591039,102.47,102.43,13.2652217]
[1770087825853,13.73587646,102.46,102.43,13.26558449]
[1770087826040,3.57484961,102.46,102.43,3.50284575]
[1770087826357,34.15653067,102.47,102.39,3.50284575]
[1770087826661,17.31072607,102.48,102.44,3.50284575]
[1770087826846,13.73587646,102.49,102.44,3.50284575]
[1770087827048,3.57484961,102.52,102.47,3.50284575]
[1770087827253,3.57484961,102.5,102.47,3.50284575]
[1770087827558,9.75492637,102.52,102.47,3.50284575]
[1770087827559,13.73587646,102.55,102.5,3.50284575]
[1770087827861,3.57484961,102.58,102.54,17.23872221]
[1770087828053,3.57484961,102.58,102.53,17.23872221]
[1770087828264,13.73587646,102.55,102.53,3.50284575]
[1770087828568,3.57484961,102.53,102.48,13.26084731]
[1770087828767,3.57484961,102.48,102.44,9.76139826]
[1770087829067,17.31072607,102.48,102.44,13.73587646]
[1770087829374,13.73587646,102.49,102.45,13.73587646]
[1770087829663,13.73587646,102.51,102.47,17.23872221]
[1770087830041,13.73587646,102.51,102.47,3.50284575]
[1770087830244,13.3291011,102.52,102.46,9.7599063]
[1770087830245,13.73587646,102.49,102.46,9.7599063]
[1770087830565,17.35667713,102.51,102.46,26.83461508]
[1770087830865,17.35667713,102.51,102.46,51.23438084]
[1770087831443,17.34817432,102.5,102.46,3.33883232]
[1770087831660,13.73587646,102.49,102.45,26.8353072]
[1770087831844,27.10444935,102.5,102.45,26.8353072]
[1770087832049,13.73587646,102.49,102.45,26.8353072]
[1770087832246,17.34817432,102.49,102.45,9.76059842]
[1770087832446,13.73587646,102.48,102.44,13.10058659]
[1770087832655,17.33976916,102.48,102.44,26.83595566]
[1770087832853,17.33976916,102.48,102.44,13.1000792]
[1770087833067,17.33976916,102.47,102.43,48.82982164]
[1770087833262,17.33976916,102.47,102.43,52.16865396]
[1770087833448,17.33146055,102.46,102.43,39.06716919]
[1770087833651,13.73587646,102.45,102.43,36.90136444]
[1770087834254,3.59558409,102.46,102.43,36.90136444]
[1770087834466,17.33146055,102.46,102.43,36.90136444]
[1770087834957,27.09217037,102.46,102.43,36.90136444]
[1770087835158,13.35629391,102.46,102.43,36.90136444]
[1770087835356,27.09217037,102.46,102.43,36.90136444]
[1770087835670,27.47175292,102.44,102.38,25.31244436]
[1770087835977,5.36086188,102.41,102.36,3.70415178]
[1770087836270,13.73587646,102.41,102.36,17.44002824]
[1770087836466,27.1,102.43,102.36,3.70415178]
[1770087836669,40.86116743,102.43,102.38,13.76116743]
[1770087836873,40.86116743,102.43,102.37,3.60415178]
[1770087837043,27.1,102.43,102.39,3.60415178]
[1770087837250,83.45993896,102.45,102.4,17.36531921]
[1770087837558,23.52297922,102.44,102.39,17.36531921]
[1770087837993,23.52297922,102.44,102.4,17.36531921]
[1770087837994,9.76181179,102.44,102.4,17.36531921]
[1770087838177,69.69877153,102.45,102.4,17.36531921]
[1770087838178,93.22102904,102.45,102.4,3.60415178]
[1770087838480,13.76116743,102.44,102.38,9.76681877]
[1770087838644,13.76116743,102.42,102.38,17.36531921]
[1770087838852,13.76116743,102.42,102.37,9.76790321]
[1770087839147,13.76116743,102.41,102.36,27.23401561]
[1770087839352,13.76116743,102.41,102.37,13.76116743]
[1770087839570,13.76116743,102.41,102.37,9.7683934]
[1770087839878,13.76116743,102.41,102.36,27.23448144]
[1770087840182,13.76116743,102.39,102.36,0.1]
[1770087840482,38.44494769,102.43,102.36,0.1]
[1770087840483,13.76116743,102.4,102.36,17.46531921]
[1770087840676,13.76116743,102.39,102.36,0.1]
[1770087840974,13.76116743,102.41,102.37,3.60415178]
[1770087841149,13.76116743,102.44,102.37,34.1894993]
[1770087841352,13.76116743,102.44,102.39,3.60415178]
[1770087841565,23.52307576,102.44,102.4,13.76116743]
[1770087841768,13.76116743,102.44,102.4,17.36531921]
[1770087842078,13.76116743,102.44,102.4,13.76116743]
[1770087842281,13.76116743,102.43,102.39,17.36531921]
[1770087842486,93.22089361,102.45,102.4,17.36531921]
[1770087842778,13.76116743,102.44,102.4,17.36531921]
[1770087843159,13.76116743,102.43,102.39,27.1313286]
[1770087843482,13.76116743,102.43,102.39,27.13182003]
[1770087843653,13.76116743,102.43,102.36,24.52210007]
[1770087843654,13.76116743,102.42,102.38,27.13260526]
[1770087843977,9.76362658,102.43,102.38,27.13260526]
[1770087844293,23.52479401,102.43,102.38,27.13260526]
[1770087844487,23.52479401,102.43,102.39,9.76656354]
[1770087844778,23.52479401,102.43,102.39,13.37071532]
[1770087845380,13.76116743,102.43,102.39,13.37071532]
[1770087845974,93.22112315,102.45,102.41,3.60415178]
[1770087846157,13.76116743,102.44,102.41,3.60415178]
[1770087846362,13.76116743,102.44,102.4,3.60415178]
[1770087846875,79.45995572,102.45,102.4,3.60415178]
[1770087846876,13.76116743,102.43,102.4,3.60415178]
[1770087847380,13.76116743,102.44,102.41,9.76467141]
[1770087847685,13.76116743,102.44,102.4,13.369353]
[1770087847915,13.76116743,102.43,102.4,13.369353]
[1770087848056,13.76116743,102.41,102.38,3.60415178]
[1770087848258,13.76116743,102.39,102.36,0.1]
[1770087848456,13.76116743,102.38,102.36,0.1]
[1770087849473,13.76116743,102.37,102.36,0.1]
[1770087849691,13.76116743,102.37,102.31,13.47791512]
[1770087849869,53.48714853,102.39,102.29,2.47215037]
[1770087849870,31.39527085,102.36,102.29,2.47215037]
[1770087850074,13.76116743,102.3,102.29,2.47215037]
[1770087850384,13.76116743,102.31,102.29,2.47215037]
[1770087850575,13.76116743,102.32,102.29,12.24805756]
[1770087850976,13.76116743,102.31,102.29,2.47215037]
[1770087851176,13.76116743,102.3,102.29,2.47215037]
[1770087851379,13.76116743,102.32,102.29,2.47215037]
[1770087851572,13.76116743,102.31,102.29,1e-08]
[1770087852205,13.76116743,102.31,102.28,9.77681527]
[1770087852375,13.76116743,102.31,102.27,9.77782671]
[1770087852877,13.76116743,102.33,102.28,13.76116743]
[1770087853400,23.53406126,102.33,102.29,9.7761215]
[1770087854098,23.53372602,102.33,102.29,9.7761215]
[1770087854280,13.76116743,102.33,102.29,13.29588127]
[1770087855295,13.76116743,102.35,102.31,3.51975977]
[1770087855477,13.76116743,102.35,102.31,13.29327849]
[1770087855678,26.80402003,102.35,102.31,9.77351872]
[1770087855878,17.03327181,102.34,102.3,13.29444848]
[1770087856592,13.76116743,102.34,102.3,13.29444848]
[1770087856897,13.76116743,102.35,102.31,9.77420113]
[1770087857074,13.76116743,102.34,102.31,9.77420113]
[1770087857283,13.76116743,102.34,102.3,27.05578272]
[1770087857485,23.53287341,102.34,102.3,13.29461529]
[1770087857799,23.53287341,102.34,102.3,3.51975977]
[1770087857997,13.76116743,102.33,102.29,9.77610088]
[1770087858175,13.04381036,102.34,102.29,3.51975977]
[1770087858375,26.80471646,102.34,102.3,13.29485488]
[1770087858582,26.80471646,102.34,102.3,3.51975977]
[1770087858787,13.76116743,102.33,102.3,3.51975977]
[1770087859892,13.76116743,102.33,102.3,13.29486321]
[1770087860096,3.50560348,102.36,102.31,3.27450241]
[1770087860296,23.53013763,102.37,102.32,17.03566984]
[1770087860609,23.53013763,102.37,102.33,3.27450241]
[1770087861202,13.76116743,102.37,102.33,3.27450241]
[1770087861514,23.52918687,102.38,102.34,3.27450241]
[1770087861706,23.52918687,102.38,102.34,17.03566984]
[1770087862006,13.76116743,102.38,102.35,3.27450241]
[1770087862705,13.76116743,102.36,102.32,13.0473233]
[1770087862908,13.76116743,102.35,102.33,9.77214498]
[1770087863092,13.76116743,102.35,102.32,13.04730659]
[1770087863808,13.76116743,102.35,102.32,3.27450241]
[1770087864019,13.76116743,102.33,102.3,13.04915239]
[1770087864321,13.76116743,102.34,102.31,13.04849121]
[1770087864908,13.76116743,102.34,102.31,13.04814376]
[1770087865493,13.76116743,102.35,102.32,9.77320038]
[1770087866510,3.50560348,102.35,102.31,13.0482196]
[1770087866708,13.76116743,102.34,102.31,13.0482196]
[1770087866990,3.50560348,102.35,102.31,13.0482196]
[1770087867190,17.26677091,102.35,102.31,13.0482196]
[1770087867594,13.76116743,102.35,102.31,13.0482196]
[1770087867799,23.53160514,102.35,102.31,13.0482196]
[1770087867995,13.76116743,102.35,102.31,13.0482196]
[1770087868194,17.26677091,102.36,102.32,3.27450241]
[1770087869006,13.76116743,102.36,102.32,3.27450241]
[1770087869598,13.76116743,102.37,102.33,3.27450241]
[1770087869804,65.39305756,102.39,102.35,3.27450241]
[1770087869989,48.12628665,102.39,102.37,3.27450241]
[1770087871205,61.88745408,102.39,102.36,9.76944118]
[1770087871915,17.26677091,102.38,102.34,13.04493032]
[1770087872097,27.03449583,102.38,102.34,13.04493032]
[1770087872611,23.52965429,102.37,102.33,9.77211118]
[1770087872812,13.76116743,102.36,102.33,13.04661359]
[1770087873014,13.76116743,102.36,102.33,13.04673679]
[1770087873393,13.76116743,102.36,102.33,3.27450241]
[1770087874093,23.53079863,102.36,102.33,3.27450241]
[1770087874825,13.76116743,102.35,102.32,9.7727923]
[1770087875000,13.76116743,102.35,102.31,37.48303655]
[1770087875396,13.76116743,102.35,102.32,9.7731038]
[1770087875818,13.76116743,102.34,102.32,9.7731038]
[1770087876026,13.76116743,102.34,102.3,3.27450241]
[1770087876027,13.76116743,102.33,102.3,3.27450241]
[1770087876318,13.76116743,102.33,102.3,13.04924476]
[1770087876498,23.53351064,102.33,102.3,13.04924476]
[1770087876903,27.03859938,102.34,102.3,13.04924476]
[1770087877094,13.76116743,102.34,102.3,37.48717242]
[1770087877601,23.53261121,102.34,102.3,37.48717242]
[1770087879509,17.26677091,102.35,102.31,3.27450241]
[1770087880122,27.03718343,102.35,102.31,3.27450241]
[1770087880596,13.276016,102.35,102.31,3.27450241]
[1770087880922,13.76116743,102.36,102.33,3.27450241]
[1770087881618,13.76116743,102.35,102.32,9.77257422]
[1770087881800,13.76116743,102.34,102.31,13.04816912]
[1770087882917,17.26677091,102.35,102.31,13.04816912]
[1770087883119,13.76116743,102.34,102.31,13.04816912]
[1770087884416,23.53260334,102.34,102.31,13.04816912]
[1770087884811,13.76116743,102.33,102.3,13.0493613]
[1770087885207,13.76116743,102.32,102.29,13.05037883]
[1770087886725,27.03953442,102.33,102.29,13.05037883]
[1770087889003,3.50560348,102.35,102.31,3.27450241]
[1770087889223,17.26677091,102.34,102.31,3.27450241]
[1770087889425,17.26677091,102.34,102.3,13.04946942]
[1770087890119,17.26677091,102.34,102.3,26.81063685]
[1770087890325,27.03826229,102.34,102.3,13.04946942]
[1770087891113,13.76116743,102.33,102.3,13.04946942]
[1770087893627,27.03826229,102.34,102.3,13.04946942]
[1770087894017,13.76116743,102.33,102.3,13.04946942]
[1770087894642,13.15903985,102.34,102.29,9.77563027]
[1770087894643,17.1487159,102.32,102.29,9.77563027]
[1770087894817,17.1487159,102.32,102.29,13.34855144]
[1770087895014,13.76116743,102.31,102.28,13.34974739]
[1770087895220,17.1487159,102.29,102.25,13.35287227]
[1770087895434,13.76116743,102.28,102.25,13.35287227]
[1770087895639,17.1487159,102.29,102.25,13.35287227]
[1770087896115,17.1487159,102.31,102.27,3.57292117]
[1770087896311,23.28651368,102.34,102.3,3.57292117]
[1770087896517,6.13779778,102.34,102.31,17.3340886]
[1770087896745,6.13779778,102.34,102.32,17.3340886]
[1770087896912,6.13779778,102.34,102.32,3.57292117]
[1770087898110,6.13779778,102.34,102.32,13.34534071]
[1770087898316,33.05796574,102.34,102.3,13.34728308]
[1770087898537,13.78196581,102.33,102.3,13.34728308]
[1770087898717,13.78196581,102.33,102.31,9.7741941]
[1770087899124,33.07876412,102.34,102.31,9.7741941]
[1770087899508,23.30731206,102.34,102.31,9.7741941]
[1770087899825,33.07871287,102.34,102.3,13.34758633]
[1770087900332,19.91976359,102.34,102.31,9.77418491]
[1770087900536,3.38754847,102.4,102.34,3.57292117]
[1770087900714,3.38754847,102.4,102.35,17.35488698]
[1770087900910,40.39327376,102.41,102.33,3.57292117]
[1770087900911,13.78196581,102.36,102.33,3.57292117]
[1770087901121,13.78196581,102.35,102.31,51.56461093]
[1770087901322,13.78196581,102.35,102.31,13.34710608]
[1770087901538,17.16951428,102.36,102.32,3.57292117]
[1770087901832,3.38754847,102.36,102.32,3.57292117]
[1770087902031,13.78196581,102.35,102.32,3.57292117]
[1770087902232,4.27527085,102.38,102.32,3.57292117]
[1770087902425,6.42190437,102.35,102.33,13.34477027]
[1770087902732,3.68180835,102.36,102.33,9.77221292]
[1770087902925,13.78196581,102.35,102.33,9.77221292]
[1770087903527,13.78196581,102.34,102.33,9.77221292]
[1770087903728,3.68180835,102.38,102.33,9.77221292]
[1770087903926,3.68180835,102.39,102.33,34.20297613]
[1770087904125,13.78196581,102.37,102.33,34.20297613]
[1770087904525,13.78196581,102.37,102.33,24.43076321]
[1770087904922,13.78196581,102.38,102.33,24.43076321]
[1770087905336,13.78196581,102.37,102.33,24.43076321]
[1770087905526,6.21692381,102.41,102.33,38.21272902]
[1770087905831,13.78196581,102.4,102.34,40.94196581]
[1770087906039,13.78196581,102.37,102.33,24.43076321]
[1770087906223,13.78196581,102.39,102.33,65.37272902]
[1770087906428,13.78196581,102.39,102.34,27.14]
[1770087906739,13.78196581,102.4,102.35,27.14]
[1770087907240,6.21692381,102.41,102.33,34.20306849]
[1770087907241,13.78196581,102.36,102.33,34.20306849]
[1770087908139,3.68180835,102.38,102.33,34.20306849]
[1770087908447,13.78196581,102.37,102.33,24.43076321]
[1770087909326,13.78196581,102.36,102.32,9.77326035]
[1770087909529,13.78196581,102.36,102.32,34.20641124]
[1770087909725,13.78196581,102.37,102.32,34.20641124]
[1770087909930,13.78196581,102.38,102.32,47.98837705]
[1770087910241,13.78196581,102.4,102.34,13.78196581]
[1770087910646,13.78196581,102.42,102.36,13.78196581]
[1770087911030,13.78196581,102.41,102.36,13.78196581]
[1770087911228,13.78196581,102.4,102.36,27.14]
[1770087911448,13.78196581,102.41,102.36,27.14]
[1770087911649,13.78196581,102.42,102.37,13.78196581]
[1770087911857,13.78196581,102.41,102.36,13.78196581]
[1770087912143,13.78196581,102.42,102.37,13.78196581]
[1770087912328,13.78196581,102.43,102.38,13.78196581]
[1770087912533,13.78196581,102.44,102.4,9.765625]
[1770087912739,13.78196581,102.45,102.4,23.54759081]
[1770087912939,13.78196581,102.45,102.4,9.765625]